bitfinex-derivatives/quotes_SOLF0:USTF0_20240908
["timestamp","ask_amount","ask_price","bid_price","bid_amount"]
[1725817437314,3.1088,128.67,128.65,9.7159]
[1725817439623,12.25944422,128.72,128.66,8.35]
[1725817439624,3.1088,128.68,128.66,8.35]
[1725817442830,1.0,128.76,128.67,8.35]
[1725817443126,8.35,128.74,128.67,8.35]
[1725817443317,8.63571336,128.73,128.67,8.35]
[1725817443524,8.35,128.72,128.66,8.35]
[1725817445426,9.6905,128.73,128.66,8.35]
[1725817446425,3.1083,128.7,128.66,8.35]
[1725817447023,3.1083,128.7,128.68,8.35]
[1725817447626,3.1079,128.71,128.69,8.35]
[1725817448028,1.3405,128.73,128.69,8.35]
[1725817448228,3.1081,128.71,128.69,8.35]
[1725817449627,3.1081,128.7,128.69,8.35]
[1725817451738,3.1079,128.71,128.69,8.35]
[1725817452636,3.1077,128.72,128.69,8.35]
[1725817453737,3.1079,128.71,128.69,8.35]
[1725817455733,3.1077,128.72,128.7,8.35]
[1725817456335,3.1075,128.73,128.7,8.35]
[1725817464247,3.1076,128.72,128.7,8.35]
[1725817464643,3.1076,128.72,128.65,2.6521]
[1725817464840,3.1079,128.71,128.67,3.1087]
[1725817465043,3.1079,128.71,128.68,8.35]
[1725817467038,3.1079,128.71,128.69,8.35]
[1725817479657,1.3013,128.76,128.7,8.35]
[1725817480062,3.94000621,128.76,128.72,8.35]
[1725817480260,3.1073,128.74,128.72,8.35]
[1725817483457,3.1073,128.74,128.71,3.90658999]
[1725817483657,3.1073,128.74,128.72,8.35]
[1725817484359,3.1073,128.74,128.69,3.1082]
[1725817484566,3.1073,128.74,128.71,8.35]
[1725817490665,13.58529752,128.77,128.71,8.35]
[1725817490666,3.1074,128.73,128.71,8.35]
[1725817494867,3.1078,128.72,128.68,4.15462202]
[1725817495072,8.35,128.73,128.65,2.6521]
[1725817495375,1.3281,128.74,128.67,8.35]
[1725817495673,1.3281,128.74,128.69,8.35]
[1725817496175,3.108,128.71,128.69,8.35]
[1725817497874,3.1081,128.7,128.68,8.35]
[1725817498870,3.1081,128.7,128.66,3.109]
[1725817499070,3.1086,128.69,128.65,5.7613]
[1725817499270,3.1086,128.69,128.67,8.35]
[1725817501378,1.3281,128.74,128.68,8.35]
[1725817502167,3.1079,128.71,128.68,8.35]
[1725817503583,3.1077,128.72,128.7,8.35]
[1725817504680,3.1077,128.72,128.66,4.16161418]
[1725817504681,5.23529752,128.77,128.71,12.18218793]
[1725817504982,1.3459,128.78,128.71,12.18218793]
[1725817504983,8.35,128.79,128.74,8.35]
[1725817505179,3.1069,128.76,128.74,8.35]
[1725817508177,3.1065,128.77,128.74,8.35]
[1725817508372,1.3181,128.8,128.76,8.35]
[1725817508889,11.0474,128.83,128.76,8.35]
[1725817509184,0.28552535,128.82,128.76,8.35]
[1725817509487,3.1061,128.79,128.76,8.35]
[1725817509785,12.3714,128.83,128.76,8.35]
[1725817509985,3.1059,128.8,128.76,8.35]
[1725817510887,12.3714,128.83,128.76,11.4565]
[1725817512388,3.1057,128.8,128.76,11.4565]
[1725817513380,3.1057,128.8,128.76,8.35]
[1725817514189,3.1057,128.8,128.77,8.35]
[1725817514382,2.6277,128.83,128.78,8.35]
[1725817514577,2.6277,128.83,128.8,8.35]
[1725817514786,2.6277,128.83,128.76,1.3694]
[1725817514787,115.10411544,128.87,128.81,8.35]
[1725817514986,3.105,128.83,128.81,8.35]
[1725817515283,115.10411544,128.87,128.82,8.35]
[1725817515677,115.10411544,128.87,128.81,8.35]
[1725817515678,123.45411544,128.87,128.81,8.35]
[1725817515885,8.35,128.86,128.79,8.35]
[1725817516080,8.35,128.85,128.78,8.35]
[1725817516276,115.10411544,128.87,128.77,2.7325]
[1725817516277,115.10411544,128.87,128.8,8.35]
[1725817516487,8.35,128.86,128.8,8.35]
[1725817516691,0.28545883,128.85,128.8,8.35]
[1725817516878,8.35,128.84,128.78,8.35]
[1725817517589,3.1054,128.82,128.78,8.35]
[1725817518083,8.35,128.84,128.78,8.35]
[1725817518686,3.1057,128.8,128.78,8.35]
[1725817519090,8.35,128.83,128.77,8.35]
[1725817519299,9.7311,128.83,128.77,8.35]
[1725817519490,3.1058,128.8,128.77,8.35]
[1725817519998,3.1058,128.8,128.78,3.94424776]
[1725817521400,3.1058,128.8,128.77,8.35]
[1725817523499,3.1059,128.79,128.77,8.35]
[1725817524095,3.1062,128.78,128.77,8.35]
[1725817525194,3.106,128.79,128.77,8.35]
[1725817525394,3.106,128.79,128.78,8.35]
[1725817536708,3.1058,128.8,128.78,8.35]
[1725817538800,5.36020841,128.83,128.78,8.35]
[1725817539205,3.1059,128.8,128.78,8.35]
[1725817547921,3.1059,128.79,128.78,8.35]
[1725817552032,3.1058,128.8,128.78,8.35]
[1725817557430,3.1059,128.79,128.78,8.35]
[1725817557626,3.1059,128.79,128.77,8.35]
[1725817558327,3.1064,128.77,128.75,141.61864648]
[1725817560535,5.36020841,128.83,128.76,11.4566]
[1725817560732,0.28550106,128.82,128.79,8.35]
[1725817560934,0.28550106,128.82,128.75,141.61864648]
[1725817561127,8.35,128.81,128.75,141.61864648]
[1725817561324,8.35,128.81,128.75,149.96864648]
[1725817561744,3.1063,128.78,128.75,149.96864648]
[1725817562832,8.35,128.81,128.75,141.61864648]
[1725817563133,8.635541,128.8,128.74,9.6215]
[1725817563337,28.60225253,128.83,128.72,8.35]
[1725817563338,8.35,128.77,128.72,8.35]
[1725817563535,3.91680907,128.76,128.72,8.35]
[1725817564139,3.1072,128.74,128.72,8.35]
[1725817564534,3.91680907,128.76,128.67,4.16774976]
[1725817564733,3.1079,128.71,128.7,8.35]
[1725817564934,3.1079,128.71,128.67,151.41519742]
[1725817565234,3.1079,128.71,128.68,8.35]
[1725817565440,3.1079,128.71,128.69,8.35]
[1725817565940,3.93123543,128.76,128.7,8.35]
[1725817566140,8.35,128.77,128.71,8.35]
[1725817566334,3.86985236,128.76,128.71,8.35]
[1725817567234,3.86985236,128.76,128.7,8.35]
[1725817567235,3.84654234,128.75,128.7,8.35]
[1725817567438,3.1076,128.73,128.7,8.35]
[1725817568442,3.84654234,128.75,128.7,8.35]
[1725817568443,3.1077,128.72,128.7,8.35]
[1725817568634,3.1077,128.72,128.67,154.52399742]
[1725817568635,8.35,128.75,128.68,8.35]
[1725817569345,3.108,128.71,128.68,8.35]
[1725817569636,3.86976455,128.75,128.7,8.35]
[1725817569842,2.6896,128.78,128.7,8.35]
[1725817569843,8.35,128.76,128.7,8.35]
[1725817570732,3.1078,128.72,128.7,8.35]
[1725817572048,3.1079,128.71,128.7,8.35]
[1725817572344,3.1079,128.71,128.69,8.35]
[1725817572534,8.35,128.75,128.69,8.35]
[1725817572740,3.1081,128.7,128.69,8.35]
[1725817573137,3.1079,128.71,128.69,8.35]
[1725817573655,3.1081,128.7,128.69,8.35]
[1725817573939,3.1081,128.7,128.67,159.76519742]
[1725817576747,3.1081,128.7,128.68,8.35]
[1725817579153,3.1084,128.69,128.67,159.76519742]
[1725817579455,8.35,128.71,128.66,1.3849]
[1725817579647,8.35,128.71,128.64,8.35]
[1725817579847,8.35,128.69,128.64,8.35]
[1725817580045,8.35,128.69,128.63,8.35]
[1725817580248,2.6808,128.72,128.63,8.35]
[1725817580249,8.35,128.68,128.63,8.35]
[1725817580453,8.35,128.67,128.61,1.3877]
[1725817580654,8.35,128.66,128.61,1.3877]
[1725817580853,8.35,128.68,128.63,8.35]
[1725817581351,8.35,128.7,128.64,8.35]
[1725817581852,8.35,128.71,128.65,8.35]
[1725817582155,0.28578026,128.7,128.65,8.35]
[1725817582352,3.109,128.67,128.65,8.35]
[1725817583246,3.1091,128.66,128.65,8.35]
[1725817583649,3.1091,128.66,128.64,8.35]
[1725817585551,3.1093,128.65,128.64,8.35]
[1725817586352,3.1092,128.66,128.64,8.35]
[1725817588359,6.65709226,128.72,128.65,8.35]
[1725817588557,8.35,128.71,128.65,8.35]
[1725817589258,8.35,128.71,128.64,8.35]
[1725817589466,6.65709226,128.72,128.64,8.35]
[1725817589467,8.35,128.7,128.64,8.35]
[1725817589951,3.109,128.67,128.64,8.35]
[1725817590361,6.65709226,128.72,128.63,8.35]
[1725817590362,8.35,128.68,128.63,8.35]
[1725817591261,3.1092,128.66,128.63,8.35]
[1725817591665,8.35,128.68,128.63,8.35]
[1725817592057,3.1093,128.66,128.63,8.35]
[1725817593968,3.1089,128.67,128.64,8.35]
[1725817599071,3.1091,128.66,128.64,8.35]
[1725817599369,3.1091,128.66,128.63,8.35]
[1725817601071,3.1093,128.65,128.63,8.35]
[1725817601777,3.1096,128.64,128.61,1.3877]
[1725817602068,8.35,128.67,128.61,9.7377]
[1725817602262,8.35,128.67,128.61,1.3877]
[1725817602666,3.1099,128.63,128.61,1.3877]
[1725817604168,3.1099,128.63,128.61,9.7377]
[1725817606672,3.1099,128.63,128.61,1.3877]
[1725817608665,3.11,128.62,128.61,1.3877]
[1725817610473,29.96709226,128.72,128.61,9.7377]
[1725817610666,8.35,128.68,128.63,8.35]
[1725817611071,3.1095,128.65,128.63,8.35]
[1725817612068,1.0,128.71,128.63,8.35]
[1725817612269,8.63579516,128.7,128.64,8.35]
[1725817612562,8.35,128.7,128.64,8.35]
[1725817613366,3.1092,128.66,128.64,8.35]
[1725817614775,3.1088,128.68,128.64,8.35]
[1725817614974,6.65709226,128.72,128.65,8.35]
[1725817615178,8.63574636,128.71,128.65,8.35]
[1725817615378,8.35,128.71,128.65,8.35]
[1725817616771,3.1085,128.69,128.65,8.35]
[1725817616971,8.35,128.71,128.65,8.35]
[1725817618382,8.35,128.71,128.66,8.35]
[1725817619380,3.1085,128.69,128.66,8.35]
[1725817626592,8.35,128.7,128.64,8.35]
[1725817626988,3.1087,128.68,128.65,8.35]
[1725817628792,3.1089,128.67,128.64,8.35]
[1725817629497,3.1092,128.66,128.64,8.35]
[1725817629989,3.1089,128.67,128.64,8.35]
[1725817631394,3.1089,128.67,128.65,8.35]
[1725817635200,8.35,128.71,128.65,8.35]
[1725817636396,3.1086,128.68,128.65,8.35]
[1725817636897,6.65709226,128.72,128.67,8.35]
[1725817638100,3.1083,128.7,128.67,8.35]
[1725817638301,3.1083,128.7,128.65,3.1092]
[1725817638501,3.1083,128.7,128.67,8.35]
[1725817639799,3.108,128.71,128.68,8.35]
[1725817640009,3.86660447,128.75,128.7,8.35]
[1725817640299,8.35,128.78,128.72,8.35]
[1725817640603,0.2856745,128.77,128.67,2.693]
[1725817640794,0.2856745,128.77,128.72,8.35]
[1725817640999,3.87554415,128.76,128.72,8.35]
[1725817641498,8.35,128.78,128.72,8.35]
[1725817641700,8.35,128.74,128.67,2.693]
[1725817641910,3.1081,128.7,128.67,11.043]
[1725817642196,12.27024253,128.74,128.67,11.043]
[1725817642798,8.35,128.73,128.67,8.35]
[1725817643307,8.35,128.71,128.66,5.24425597]
[1725817643499,12.27516126,128.71,128.66,5.24425597]
[1725817644195,3.1083,128.7,128.66,5.24425597]
[1725817646204,12.27516126,128.71,128.66,1.2867]
[1725817647206,3.1085,128.69,128.66,1.2867]
[1725817648208,12.27516126,128.71,128.66,1.2867]
[1725817648416,3.1086,128.68,128.66,1.2867]
[1725817648804,3.1086,128.68,128.66,5.20391725]
[1725817650809,3.1086,128.68,128.67,8.35]
[1725817651006,3.1084,128.69,128.67,8.35]
[1725817651206,3.1084,128.69,128.68,8.35]
[1725817653405,3.1084,128.69,128.67,8.35]
[1725817654715,3.93082005,128.72,128.67,8.35]
[1725817654922,8.35,128.73,128.67,8.35]
[1725817655419,12.23107267,128.73,128.67,8.35]
[1725817655620,3.1085,128.69,128.67,8.35]
[1725817661922,3.1085,128.69,128.66,5.20391725]
[1725817661923,8.35,128.74,128.68,8.35]
[1725817662217,8.35,128.75,128.7,8.35]
[1725817662420,3.1078,128.72,128.7,8.35]
[1725817666226,4.1043,128.79,128.71,8.35]
[1725817666423,8.63565171,128.78,128.72,8.35]
[1725817666614,0.28565171,128.77,128.72,8.35]
[1725817666818,3.1071,128.75,128.72,8.35]
[1725817667626,3.96441287,128.76,128.72,8.35]
[1725817667827,8.35,128.78,128.72,8.35]
[1725817668126,0.28565308,128.77,128.72,8.35]
[1725817668328,3.94483294,128.76,128.72,8.35]
[1725817668830,3.1071,128.75,128.72,8.35]
[1725817671223,12.4543,128.79,128.73,12.1526418]
[1725817671430,0.2856287,128.78,128.75,8.35]
[1725817671731,3.1066,128.77,128.75,8.35]
[1725817673622,3.1062,128.78,128.75,8.35]
[1725817673928,3.1062,128.78,128.76,8.35]
[1725817675724,3.1065,128.77,128.75,8.35]
[1725817675924,3.1065,128.77,128.74,8.35]
[1725817676134,3.1065,128.77,128.74,12.24109053]
[1725817677326,3.1067,128.76,128.74,8.35]
[1725817677522,3.1067,128.76,128.74,12.23875984]
[1725817679032,3.1067,128.76,128.74,8.35]
[1725817682433,3.1067,128.76,128.75,8.35]
[1725817685433,3.1066,128.77,128.75,8.35]
[1725817685637,3.1066,128.77,128.76,8.35]
[1725817686927,113.13871951,128.81,128.76,8.35]
[1725817687638,3.1062,128.79,128.76,8.35]
[1725817688438,9.6973,128.82,128.76,8.35]
[1725817688634,0.28552158,128.81,128.76,8.35]
[1725817688939,9.6973,128.82,128.76,8.35]
[1725817689242,0.28552158,128.81,128.76,8.35]
[1725817691446,3.1062,128.79,128.76,8.35]
[1725817696461,3.1062,128.78,128.76,8.35]
[1725817703256,3.91115253,128.83,128.76,8.35]
[1725817703464,3.91115253,128.83,128.79,8.35]
[1725817703664,3.91115253,128.83,128.8,8.35]
[1725817703971,3.1052,128.82,128.8,8.35]
[1725817704968,3.1055,128.81,128.8,8.35]
[1725817706963,3.1053,128.82,128.8,8.35]
[1725817707165,3.94230612,128.83,128.76,2.7085]
[1725817707465,0.28547805,128.82,128.78,8.35]
[1725817707768,3.1056,128.81,128.78,8.35]
[1725817710069,3.1056,128.81,128.8,8.35]
[1725817711567,3.1056,128.81,128.76,2.7085]
[1725817711568,3.1056,128.81,128.78,8.35]
[1725817712066,5.20812222,128.84,128.65,205.24716795]
[1725817712067,8.35,128.79,128.65,205.24716795]
[1725817712264,8.35,128.78,128.67,4.0392]
[1725817712456,8.63557206,128.77,128.67,4.0392]
[1725817712660,8.63557206,128.77,128.7,8.35]
[1725817712661,3.8366809,128.76,128.7,8.35]
[1725817712967,3.1073,128.74,128.7,8.35]
[1725817713164,3.1073,128.74,128.72,8.35]
[1725817713975,2.6528,128.77,128.72,8.35]
[1725817714168,3.8907452,128.76,128.67,7.87821087]
[1725817714469,3.8907452,128.76,128.71,8.35]
[1725817715269,3.1073,128.74,128.71,8.35]
[1725817718474,27.17192222,128.84,128.73,8.35]
[1725817718475,3.107,128.75,128.73,8.35]
[1725817718674,8.35,128.81,128.74,8.35]
[1725817718867,0.28557641,128.8,128.74,8.35]
[1725817719575,0.28557641,128.8,128.76,8.35]
[1725817719773,8.35,128.82,128.76,8.35]
[1725817719971,0.28554962,128.81,128.76,8.35]
[1725817720276,3.1064,128.78,128.76,8.35]
[1725817720985,3.1064,128.77,128.76,8.35]
[1725817722270,8.35,128.82,128.76,8.35]
[1725817722576,3.1063,128.78,128.76,8.35]
[1725817723378,2.5671,128.83,128.77,8.35]
[1725817723565,0.28551131,128.82,128.78,8.35]
[1725817723771,2.5671,128.83,128.78,8.35]
[1725817724071,3.1059,128.8,128.78,8.35]
[1725817724472,2.5671,128.83,128.78,8.35]
[1725817725675,3.1059,128.8,128.78,8.35]
[1725817726376,3.1059,128.79,128.78,8.35]
[1725817732376,2.5671,128.83,128.78,8.35]
[1725817732580,3.86192222,128.84,128.81,8.35]
[1725817732884,3.1052,128.82,128.81,8.35]
[1725817733070,8.35,128.87,128.81,8.35]
[1725817733071,3.81203883,128.84,128.81,8.35]
[1725817733376,8.35,128.87,128.81,8.35]
[1725817733583,4.21944839,128.85,128.81,8.35]
[1725817733780,3.93398058,128.85,128.81,8.35]
[1725817734987,106.49411842,128.86,128.81,8.35]
[1725817735195,0.28546856,128.85,128.81,8.35]
[1725817736383,3.1052,128.82,128.81,8.35]
[1725817738986,3.1051,128.83,128.81,8.35]
[1725817739480,3.1051,128.83,128.82,8.35]
[1725817740487,3.1054,128.82,128.8,8.35]
[1725817742982,3.1055,128.81,128.8,8.35]
[1725817744189,3.1053,128.82,128.8,8.35]
[1725817745286,3.105,128.83,128.81,8.35]
[1725817745481,3.105,128.83,128.82,8.35]
[1725817752695,3.96737864,128.86,128.78,1.2703]
[1725817752884,8.35,128.84,128.79,8.35]
[1725817753187,23.32,128.86,128.77,8.35]
[1725817753188,8.35,128.83,128.77,8.35]
[1725817753393,9.6263,128.83,128.77,8.35]
[1725817754388,3.1058,128.8,128.77,8.35]
[1725817754789,3.106,128.79,128.77,8.35]
[1725817755388,3.1062,128.78,128.77,8.35]
[1725817755585,3.95853498,128.79,128.75,1.3976]
[1725817755788,8.35,128.8,128.74,152.76235305]
[1725817756393,3.94300066,128.79,128.74,152.76235305]
[1725817756590,3.1066,128.77,128.74,152.76235305]
[1725817758296,3.83270693,128.78,128.73,8.35]
[1725817758484,8.35,128.79,128.73,8.35]
[1725817758691,3.107,128.75,128.73,8.35]
[1725817759289,8.35,128.78,128.69,4.17747169]
[1725817759497,9.7439,128.78,128.71,8.35]
[1725817759997,3.1073,128.74,128.71,8.35]
[1725817760200,9.7439,128.78,128.71,8.35]
[1725817760891,3.1073,128.74,128.71,8.35]
[1725817761609,3.1074,128.73,128.71,8.35]
[1725817763409,3.1076,128.72,128.71,8.35]
[1725817766507,3.1074,128.73,128.71,8.35]
[1725817766707,3.1074,128.73,128.72,8.35]
[1725817770406,3.108,128.71,128.68,3.9962]
[1725817770602,3.108,128.71,128.7,8.35]
[1725817771509,1.3758,128.77,128.68,3.9962]
[1725817771510,3.1084,128.69,128.68,9.7482]
[1725817771808,3.1084,128.69,128.68,1.3982]
[1725817772602,3.1083,128.7,128.68,9.7482]
[1725817775805,3.1079,128.71,128.68,9.7482]
[1725817776005,8.35,128.75,128.68,9.7482]
[1725817776202,1.3758,128.77,128.73,8.35]
[1725817776504,1.3939,128.78,128.68,1.3982]
[1725817776505,1.3939,128.78,128.74,8.35]
[1725817777410,3.1068,128.76,128.73,8.35]
[1725817777615,1.3939,128.78,128.73,8.35]
[1725817779313,3.1068,128.76,128.73,8.35]
[1725817785514,1.3939,128.78,128.73,8.35]
[1725817785709,11.0688,128.78,128.72,8.35]
[1725817786113,3.1071,128.75,128.72,8.35]
[1725817786723,3.1072,128.74,128.72,8.35]
[1725817790824,3.1074,128.73,128.72,8.35]
[1725817794028,3.1076,128.72,128.71,8.35]
[1725817803337,3.1075,128.73,128.71,8.35]
[1725817804335,3.1075,128.73,128.72,8.35]
[1725817806139,3.1072,128.74,128.72,8.35]
[1725817809036,3.1072,128.74,128.7,11.4581]
[1725817809543,3.1072,128.74,128.7,8.35]
[1725817809745,3.1075,128.73,128.7,8.35]
[1725817815244,3.1078,128.72,128.69,2.5557]
[1725817815445,3.1078,128.72,128.7,8.35]
[1725817822148,3.1078,128.72,128.69,2.5557]
[1725817822347,12.14952521,128.72,128.56,6.2228]
[1725817822551,8.35,128.72,128.65,8.35]
[1725817822743,8.35,128.72,128.65,3.84576138]
[1725817822744,12.32242517,128.72,128.65,3.84576138]
[1725817822951,12.32242517,128.72,128.6,3.9833]
[1725817822952,12.32242517,128.72,128.66,8.35]
[1725817823342,3.97242517,128.72,128.66,8.35]
[1725817823652,27.3482,128.78,128.65,3.86194029]
[1725817823653,8.35,128.75,128.69,8.35]
[1725817823846,27.3482,128.78,128.69,8.35]
[1725817824048,8.35,128.75,128.69,8.35]
[1725817824552,3.108,128.71,128.69,8.35]
[1725817825755,4.0282,128.78,128.69,8.35]
[1725817825952,4.0282,128.78,128.66,3.8654]
[1725817825953,8.63563389,128.77,128.71,8.35]
[1725817826247,8.35,128.77,128.71,8.35]
[1725817826652,3.1074,128.74,128.72,8.35]
[1725817826840,12.3782,128.78,128.72,8.35]
[1725817827046,2.7188,128.78,128.74,8.35]
[1725817827354,1.3249,128.78,128.74,8.35]
[1725817827545,3.96131137,128.79,128.74,8.35]
[1725817827747,3.1066,128.77,128.75,8.35]
[1725817828043,1.3431,128.83,128.72,7.03994523]
[1725817828044,1.3431,128.83,128.76,8.35]
[1725817828249,0.28552958,128.82,128.78,8.35]
[1725817828442,8.63552958,128.82,128.77,8.35]
[1725817828753,8.35,128.81,128.76,8.35]
[1725817829148,8.35,128.81,128.73,7.89485455]
[1725817829350,8.35,128.8,128.75,8.35]
[1725817829545,3.93653903,128.79,128.75,8.35]
[1725817830046,3.1064,128.77,128.75,8.35]
[1725817831144,2.6535,128.83,128.76,8.35]
[1725817831145,3.1063,128.78,128.76,8.35]
[1725817834352,8.35,128.81,128.75,8.35]
[1725817835352,8.35,128.81,128.76,8.35]
[1725817836557,3.1063,128.78,128.76,8.35]
[1725817836858,3.1061,128.79,128.76,8.35]
[1725817837043,2.6535,128.83,128.76,8.35]
[1725817837248,2.6535,128.83,128.73,7.89485455]
[1725817837249,8.35,128.81,128.73,7.89485455]
[1725817837551,8.35,128.81,128.76,8.35]
[1725817837857,3.1064,128.78,128.76,8.35]
[1725817840460,3.1064,128.77,128.76,8.35]
[1725817846856,3.1064,128.77,128.74,8.35]
[1725817847057,12.16301949,128.79,128.73,9.6673]
[1725817847260,8.35,128.78,128.72,12.32382117]
[1725817847562,10.9854,128.78,128.72,8.35]
[1725817847758,3.1071,128.75,128.72,8.35]
[1725817847959,3.1071,128.75,128.72,12.29391361]
[1725817848462,3.1071,128.75,128.73,8.35]
[1725817849868,3.1071,128.74,128.73,8.35]
[1725817855770,3.1076,128.73,128.69,169.75834503]
[1725817855965,3.1076,128.73,128.72,8.35]
[1725817856264,3.1079,128.71,128.69,166.65004503]
[1725817856472,8.35,128.76,128.7,8.35]
[1725817856672,8.35,128.75,128.69,166.65004503]
[1725817856968,8.35,128.74,128.69,166.65004503]
[1725817857568,8.35,128.74,128.69,175.00004503]
[1725817857768,3.1079,128.71,128.69,175.00004503]
[1725817858074,3.1079,128.71,128.7,8.35]
[1725817858273,3.1077,128.72,128.7,8.35]
[1725817858570,8.35,128.75,128.7,8.35]
[1725817860367,3.1078,128.72,128.7,8.35]
[1725817863083,3.1079,128.71,128.7,8.35]
[1725817864074,3.1079,128.71,128.69,8.35]
[1725817865587,8.35,128.75,128.69,8.35]
[1725817866480,3.1079,128.71,128.69,8.35]
[1725817867275,8.35,128.74,128.68,8.35]
[1725817868182,3.1083,128.7,128.68,8.35]
[1725817869282,3.80460127,128.7,128.66,1.3728]
[1725817869488,8.35,128.71,128.66,1.3728]
[1725817869690,3.1093,128.66,128.61,3.1102]
[1725817869890,2.6332,128.73,128.62,16.51108109]
[1725817869891,8.35,128.68,128.62,16.51108109]
[1725817870192,8.35,128.68,128.62,8.35]
[1725817870785,3.1094,128.65,128.62,12.20045857]
[1725817870982,8.35,128.68,128.62,12.20045857]
[1725817871583,3.1094,128.65,128.62,12.20045857]
[1725817872888,3.1094,128.65,128.62,8.35]
[1725817873084,3.1094,128.65,128.62,12.25288616]
[1725817873485,3.95577491,128.71,128.64,8.35]
[1725817873688,8.63577583,128.7,128.64,8.35]
[1725817873887,12.1809561,128.7,128.64,8.35]
[1725817874588,3.1091,128.66,128.64,8.35]
[1725817876095,3.8309561,128.7,128.65,8.35]
[1725817876291,8.35,128.71,128.66,8.35]
[1725817876792,3.1088,128.68,128.66,8.35]
[1725817878093,3.1084,128.69,128.66,8.35]
[1725817879894,3.1087,128.68,128.65,8.35]
[1725817882389,3.1087,128.68,128.67,8.35]
[1725817884392,3.1087,128.68,128.65,8.35]
[1725817884793,3.1087,128.68,128.66,8.35]
[1725817884992,3.1084,128.69,128.66,8.35]
[1725817890705,3.1084,128.69,128.64,5.7816]
[1725817890904,8.35,128.7,128.64,1.2691]
[1725817891402,3.109,128.67,128.64,1.2691]
[1725817893698,3.1093,128.65,128.62,8.35]
[1725817894312,3.1093,128.65,128.62,12.1519902]
[1725817899117,8.35,128.72,128.64,8.35]
[1725817899419,2.6332,128.73,128.68,8.35]
[1725817899716,1.3405,128.73,128.7,8.35]
[1725817899913,103.17474959,128.75,128.7,8.35]
[1725817901109,8.35,128.76,128.7,8.35]
[1725817901307,3.1075,128.73,128.7,8.35]
[1725817901514,2.6136,128.77,128.69,8.35]
[1725817901515,8.35,128.75,128.69,8.35]
[1725817902009,3.1078,128.72,128.69,8.35]
[1725817903415,3.1079,128.71,128.69,8.35]
[1725817903921,8.35,128.75,128.68,8.35]
[1725817904122,8.35,128.73,128.68,8.35]
[1725817904613,8.35,128.72,128.67,8.35]
[1725817904806,3.97784687,128.71,128.67,8.35]
[1725817905207,3.97784687,128.71,128.65,8.35]
[1725817905208,12.32784687,128.71,128.65,8.35]
[1725817905411,3.1085,128.69,128.65,8.35]
[1725817905613,8.35,128.71,128.65,8.35]
[1725817905815,8.35,128.71,128.63,4.1333]
[1725817906025,3.1087,128.68,128.64,8.35]
[1725817906415,8.35,128.7,128.63,7.2429]
[1725817906613,8.35,128.7,128.64,8.35]
[1725817907320,3.1089,128.67,128.64,8.35]
[1725817908210,3.1092,128.66,128.64,8.35]